fUSD/lending_fUSD_20241119
["ID","MTS","AMOUNT","RATE_DAILY","PERIOD"]
[342667654,1732030243963,-172024.24419169,0.000494,120]
[342667656,1732030243973,-50000.0,0.0004945,120]
[342667658,1732030243983,-172185.60129807,0.000495,120]
[342667660,1732030243992,-50000.0,0.000495,35]
[342667662,1732030244001,-206.30194618,0.000495,120]
[342667664,1732030244010,-1000.0,0.000496,30]
[342667666,1732030244020,-150.0,0.000497,20]
[342667668,1732030244029,-50000.0,0.0004977,120]
[342667670,1732030244039,-200.0,0.00049789,7]
[342667672,1732030244048,-1990.32035565,0.000498,120]
[342667673,1732030244057,-30000.0,0.000498,30]
[342667675,1732030244066,-8769.73896136,0.000498,120]
[342667677,1732030244075,-28321.87498952,0.000498,30]
[342667679,1732030244086,-8626.87370881,0.000498,120]
[342667681,1732030244095,-1502.556,0.000498,120]
[342667682,1732030244103,-5689.20794624,0.000498,120]
[342667683,1732030244113,-8467.25839556,0.000498,120]
[342667684,1732030244122,-42285.68020942,0.000498,30]
[342667685,1732030244132,-51251.0,0.0004985,120]
[342667686,1732030244145,-10678.246,0.0004987,30]
[342667687,1732030244154,-417.0,0.00049886,90]
[342667688,1732030244164,-10624.6,0.0004989,30]
[342667689,1732030244173,-1000.0,0.000499,30]
[342667690,1732030244183,-16228.9635826,0.00049944,120]
[342667691,1732030244193,-1000.0,0.00049945,120]
[342667692,1732030244202,-50000.0,0.0005,50]
[342667693,1732030244211,-992.70742192,0.0005,120]
[342667694,1732030244220,-500.0,0.0005,30]
[342667695,1732030244231,-400.0,0.0005,120]
[342667696,1732030244240,-10000.0,0.0005,120]
[342667697,1732030244250,-1128.0,0.0005,120]
[342667698,1732030244259,-1128.18780053,0.0005,2]
[342667699,1732030244268,-3946.02742721,0.0005,2]
[342667700,1732030244278,-1533.50135712,0.0005,60]
[342667701,1732030244286,-1234.17124704,0.0005,120]
[342667702,1732030244296,-150.0,0.0005,120]
[342667703,1732030244305,-3877.84874318,0.0005,120]
[342667704,1732030244314,-177572.57400792,0.0005,120]
[342667705,1732030244356,-2604.02256679,0.0005,5]
[342667706,1732030244365,-482.0015888,0.0005,120]
[342667707,1732030244374,-2226.0,0.0005,120]
[342667708,1732030244385,-4412.68415352,0.0005,120]
[342667709,1732030244394,-1162.28227387,0.0005,30]
[342667710,1732030244404,-500.0,0.0005,120]
[342667711,1732030244413,-140000.0,0.0005,60]
[342667712,1732030244423,-5295.0,0.0005,120]
[342667713,1732030244432,-400.0,0.0005,30]
[342667714,1732030244441,-15000.0,0.0005,120]
[342667715,1732030244451,-1000.0,0.0005,120]
[342667716,1732030244462,-50720.35227342,0.0005,120]
[342667717,1732030244472,-30000.0,0.0005,120]
[342667718,1732030244481,-2000.0,0.0005,120]
[342667719,1732030244490,-199.1935686,0.0005,120]
[342667720,1732030244499,-15009.24,0.0005,68]
[342667721,1732030244508,-200.0,0.0005,30]
[342667722,1732030244518,-200.0,0.0005,120]
[342667723,1732030244527,-12000.0,0.0005,120]
[342667724,1732030244536,-50000.0,0.0005,36]
[342667725,1732030244544,-5527.82994263,0.0005,60]
[342667726,1732030244553,-13425.66,0.0005,120]
[342667727,1732030244564,-500.0,0.0005,120]
[342667728,1732030244573,-151.70087476,0.0005,120]
[342667729,1732030244584,-5606.0,0.0005,120]
[342667730,1732030244593,-15450.0,0.0005,30]
[342667731,1732030244602,-4894.8832576,0.0005,30]
[342667732,1732030244611,-1451.59972188,0.0005,120]
[342667733,1732030244620,-250.0,0.0005,60]
[342667734,1732030244629,-90226.52199408,0.0005,120]
[342667735,1732030244638,-34392.20679915,0.0005,120]
[342667736,1732030244647,-156.96,0.0005,120]
[342667737,1732030244656,-4250.0,0.0005,120]
[342667738,1732030244664,-49817.0,0.0005,10]
[342667739,1732030244674,-1500.0,0.0005,30]
[342667740,1732030244684,-250.0,0.0005,30]
[342667741,1732030244693,-151.0,0.0005,120]
[342667742,1732030244704,-500.0,0.0005,120]
[342667743,1732030244716,-150.0,0.0005,120]
[342667744,1732030244727,-1000.0,0.000502,60]
[342667745,1732030244737,-311.56,0.0005025,120]
[342667746,1732030244748,-200.0,0.00050287,7]
[342667747,1732030244758,-1000.0,0.000505,60]
[342667748,1732030244768,-503.0,0.00050595,35]
[342667749,1732030244777,-200.0,0.0005079,7]
[342667750,1732030244788,-1000.0,0.000508,60]
[342667751,1732030244798,-50000.0,0.00051,51]
[342667752,1732030244809,-5024.42073428,0.00051,120]
[342667753,1732030244817,-150.0,0.00051,120]
[342667754,1732030244826,-1017.0,0.00051,120]
[342667755,1732030244837,-318.44863316,0.00051,120]
[342667756,1732030244846,-10000.0,0.00051,120]
[342667757,1732030244855,-50000.0,0.00051,38]
[342667758,1732030244864,-1500.0,0.00051,120]
[342667759,1732030244873,-11781.0,0.00051139,117]
[342667760,1732030244882,-200.0,0.00051298,7]
[342667761,1732030244891,-200.0,0.000514,120]
[342667762,1732030244900,-150.0,0.0005165,20]
[342667763,1732030244909,-1000.0,0.00051732,120]
[342667764,1732030244918,-6724.55870503,0.00051788,120]
[342667765,1732030244927,-39689.0,0.0005183,120]
[342667766,1732030244936,-1000.0,0.00051999,120]
[342667767,1732030244946,-50000.0,0.00052,52]
[342667768,1732030244955,-400.0,0.00052,120]
[342667769,1732030244964,-150.0,0.00052,120]
[342667770,1732030244973,-1000.0,0.00052,120]
[342667771,1732030244982,-13551.0,0.00052,30]
[342667772,1732030244991,-3331.7685323,0.00052,120]
[342667773,1732030245001,-103640.85087892,0.00052,120]
[342667774,1732030245010,-300.0,0.00052,120]
[342667775,1732030245019,-76375.69653965,0.00052,120]
[342667776,1732030245028,-629.66688931,0.00052,120]
[342667777,1732030245038,-11198.57150646,0.00052,120]
[342667778,1732030245046,-1000.0,0.00052,120]
[342667779,1732030245055,-795.68075775,0.00052,120]
[342667780,1732030245064,-1924.46164241,0.00052,120]
[342667781,1732030245073,-1500.0,0.00052,120]
[342667782,1732030245088,-3094.4,0.00052054,120]
[342667783,1732030245100,-3094.4,0.00052054,120]
[342667784,1732030245110,-3094.4,0.00052054,120]
[342667785,1732030245121,-3094.4,0.00052054,120]
[342667786,1732030245132,-3094.4,0.00052054,120]
[342667787,1732030245142,-3094.4,0.00052054,120]
[342667788,1732030245154,-3094.4,0.00052054,120]
[342667789,1732030245164,-3094.4,0.00052054,120]
[342667790,1732030245174,-3094.4,0.00052054,120]
[342667791,1732030245184,-3094.4,0.00052054,120]
[342667792,1732030245195,-3094.4,0.00052054,120]
[342667793,1732030245204,-3094.4,0.00052054,120]
[342667794,1732030245214,-3094.4,0.00052054,120]
[342667795,1732030245227,-3094.4,0.00052054,120]
[342667796,1732030245242,-3094.4,0.00052054,120]
[342667797,1732030245251,-3094.4,0.00052054,120]
[342667798,1732030245264,-3094.4,0.00052054,120]
[342667799,1732030245274,-3094.4,0.00052054,120]
[342667800,1732030245286,-3094.4,0.00052054,120]
[342667801,1732030245296,-3094.4,0.00052054,120]
[342667802,1732030245306,-3094.4,0.00052054,120]
[342667803,1732030245315,-3094.4,0.00052054,120]
[342667804,1732030245326,-3094.4,0.00052054,120]
[342667805,1732030245340,-3094.42139234,0.00052054,120]
[342667806,1732030245350,-167.0,0.000521,2]
[342667807,1732030245359,-1000.0,0.000525,2]
[342667808,1732030245370,-311.56,0.00052834,120]
[342667809,1732030245379,-50000.0,0.00053,53]
[342667810,1732030245389,-571.90696162,0.00053,2]
[342667811,1732030245398,-150.0,0.00053,120]
[342667812,1732030245407,-41116.0,0.00053,120]
[342667813,1732030245416,-200.0,0.00053,120]
[342667814,1732030245426,-53051.16990756,0.00053,120]
[342667815,1732030245436,-1500.0,0.00053,120]
[342667816,1732030245445,-12566.4,0.00053175,117]
[342667817,1732030245454,-811.0124,0.0005328,90]
[342667818,1732030245463,-443.31845988,0.0005331,2]
[342667819,1732030245472,-15000.0,0.00053444,30]
[342667820,1732030245481,-150.0,0.0005375,30]
[342667821,1732030245491,-27161.0,0.0005375,120]
[342667822,1732030245502,-793.08,0.00053756,2]
[342667823,1732030245512,-305.31,0.00053756,2]
[342667824,1732030245521,-394.67,0.00053756,2]
[342667825,1732030245531,-183.942,0.00053813,100]
[342667826,1732030245541,-24653.84914254,0.000539,120]
[342667827,1732030245550,-50000.0,0.00054,54]
[342667828,1732030245560,-261.8448684,0.00054,14]
[342667830,1732030245571,-11000.0,0.00054,120]
[342667831,1732030245582,-400.0,0.00054,120]
[342667832,1732030245593,-150.0,0.00054,120]
[342667833,1732030245603,-44124.38320533,0.00054,120]
[342667834,1732030245612,-175.0,0.00054,120]
[342667835,1732030245621,-343.0,0.00054,120]
[342667836,1732030245631,-97000.0,0.00054,120]
[342667837,1732030245640,-150.069821,0.00054,2]
[342667838,1732030245649,-1500.0,0.00054,120]
[342667839,1732030245659,-70577.0,0.0005425,120]
[342667840,1732030245668,-3000.0,0.00054296,67]
[342667841,1732030245678,-10174.9417,0.0005444,30]
[342667842,1732030245687,-13316.288043,0.000545,30]
[342667843,1732030245696,-669.153465,0.000545,30]
[342667844,1732030245705,-652.424628,0.000545,30]
[342667845,1732030245715,-1229.0,0.000546,120]
[342667846,1732030245724,-19850.89,0.0005468,120]
[342667847,1732030245734,-800.0,0.00054795,14]
[342667848,1732030245743,-800.0,0.00054795,14]
[342667850,1732030245752,-724.0,0.00054795,120]
[342667851,1732030245761,-674.0,0.00054795,120]
[342667852,1732030245771,-680.0,0.00054795,120]
[342667853,1732030245780,-799.0,0.00054795,120]
[342667854,1732030245789,-826.0,0.00054795,120]
[342667855,1732030245799,-23075.89,0.00054795,30]
[342667856,1732030245808,-500.0,0.00054795,120]
[342667857,1732030245817,-150166.24108198,0.000548,120]
[342667858,1732030245827,-150.0,0.0005482,30]
[342667859,1732030245839,-50000.0,0.0005487,120]
[342667860,1732030245848,-6117.44654251,0.000549,120]
[342667861,1732030245857,-50000.0,0.0005493,120]
[342667862,1732030245866,-50000.0,0.00055,55]
[342667863,1732030245875,-400.0,0.00055,120]
[342667864,1732030245884,-286.39,0.00055,120]
[342667865,1732030245893,-150.0,0.00055,120]
[342667866,1732030245903,-3250.0,0.00055,120]
[342667867,1732030245913,-9785.29,0.00055,120]
[342667868,1732030245922,-209.6186412,0.00055,120]
[342667869,1732030245932,-11362.937591,0.00055,120]
[342667870,1732030245943,-83590.0,0.00055,15]
[342667871,1732030245953,-1000.0,0.00055,120]
[342667872,1732030245962,-18000.0,0.00055,120]
[342667873,1732030245972,-80000.0,0.00055,30]
[342667874,1732030245984,-12542.18163532,0.00055,5]
[342667875,1732030245994,-200.0,0.00055,120]
[342667876,1732030246003,-38925.88882829,0.00055,30]
[342667877,1732030246012,-1210.01454677,0.00055,120]
[342667878,1732030246022,-10000.0,0.00055,100]
[342667879,1732030246031,-1500.0,0.00055,120]
[342667880,1732030246040,-13351.8,0.00055211,117]
[342667881,1732030246050,-311.56,0.00055418,120]
[342667882,1732030246060,-80000.0,0.0005545,120]
[342667883,1732030246069,-150.0,0.000555,40]
[342667884,1732030246080,-189.23497829,0.0005555,75]
[342667885,1732030246090,-1000.0,0.00055999,120]
[342667886,1732030246100,-50000.0,0.00056,56]
[342667887,1732030246111,-500.0,0.00056,120]
[342667888,1732030246120,-311.76632835,0.00056,120]
[342667889,1732030246129,-150.0,0.00056,120]
[342667890,1732030246138,-580.0,0.00056,14]
[342667892,1732030246151,-1500.0,0.00056,120]
[342667894,1732030246160,-10184.61228517,0.00056,120]
[342667895,1732030246170,-211.27450731,0.00056515,120]
[342667897,1732030246180,-9795.5522122,0.00056521,2]
[342667899,1732030246190,-521.4255894,0.00056521,2]
[342667901,1732030246199,-4380416.55832763,0.0005656,120]
[342667903,1732030246209,-97927.12595996,0.0005656,120]
[342667905,1732030246218,-150.0,0.0005664,30]
[342667907,1732030246229,-15944.99462755,0.0005689,120]
[342667909,1732030246237,-200.0,0.000569,20]
[342667911,1732030246246,-900.0,0.000569,20]
[342667912,1732030246255,-1100.0,0.000569,20]
[342667913,1732030246264,-100000.0,0.0005693,120]
[342667914,1732030246274,-50000.0,0.00057,57]
[342667915,1732030246283,-500.0,0.00057,120]
[342667916,1732030246292,-150.0,0.00057,120]
[342667917,1732030246300,-10064.24726873,0.00057,120]
[342667918,1732030246309,-14137.2,0.00057247,117]
[342667919,1732030246319,-1000.0,0.0005748,120]
[342667920,1732030246328,-166.2,0.000575,2]
[342667921,1732030246342,-13227.88101432,0.000575,120]
[342667922,1732030246351,-167.41374825,0.000575,30]
[342667923,1732030246360,-123486.99871224,0.000578,120]
[342667924,1732030246370,-50000.0,0.0005793,120]
[342667925,1732030246379,-50000.0,0.00058,58]
[342667926,1732030246389,-1000.0,0.00058,2]
[342667928,1732030246398,-150.0,0.00058,120]
[342667929,1732030246408,-884.39093253,0.00058,120]
[342667931,1732030246417,-4419.50988406,0.00058,120]
[342667933,1732030246427,-1000.0,0.00058,120]
[342667935,1732030246436,-10000.0,0.00058,120]
[342667937,1732030246446,-28956.84587869,0.00058,120]
[342667939,1732030246456,-85408.39944917,0.00058,120]
[342667941,1732030246465,-156.96,0.00058,120]
[342667943,1732030246475,-311.56,0.00058002,120]
[342667945,1732030246490,-60704.87657315,0.0005822,120]
[342667947,1732030246499,-500.0,0.000584,120]
[342667949,1732030246508,-80000.0,0.000584,120]
[342667951,1732030246518,-417.0,0.00058486,120]
[342667952,1732030246527,-10000.0,0.000585,120]
[342667953,1732030246536,-2000.0,0.000586,120]
[342667955,1732030246545,-150.0,0.0005865,40]
[342667956,1732030246555,-50000.0,0.0005875,120]
[342667957,1732030246563,-50000.0,0.0005893,120]
[342667958,1732030246572,-8386.3987743,0.0005896,2]
[342667959,1732030246586,-446.4151514,0.0005896,2]
[342667960,1732030246596,-50000.0,0.00059,59]
[342667961,1732030246605,-10000.0,0.00059,120]
[342667962,1732030246614,-402202.24411096,0.00059,120]
[342667963,1732030246624,-555.0,0.00059,120]
[342667964,1732030246633,-400.08622421,0.00059,120]
[342667965,1732030246642,-451.6173921,0.00059,120]
[342667966,1732030246651,-150.0,0.00059,120]
[342667967,1732030246660,-300.0,0.00059,120]
[342667968,1732030246669,-40000.0,0.00059,30]
[342667969,1732030246678,-569.2905881,0.0005909,2]
[342667970,1732030246687,-150.0,0.0005927,40]
[342667971,1732030246697,-14922.6,0.00059283,117]
[342667972,1732030246706,-3000.0,0.00059296,67]
[342667973,1732030246717,-2478.33929227,0.00059335,120]
[342667974,1732030246726,-67535.2,0.0005938,120]
[342667975,1732030246735,-123632.26782598,0.000595,80]
[342667976,1732030246744,-8000.0,0.00059589,90]
[342667977,1732030246755,-1331.23,0.00059657,120]
[342667978,1732030246764,-50000.0,0.0005969,120]
[342667979,1732030246773,-14634.0,0.0005973,120]
[342667980,1732030246783,-47034.0,0.0005975,120]
[342667981,1732030246792,-51164.0,0.0005987,120]
[342667982,1732030246803,-752.4282723,0.00059889,2]
[342667983,1732030246812,-1070.64238535,0.00059893,120]
[342667984,1732030246821,-150.0,0.000599,40]
[342667985,1732030246834,-1407.07018853,0.000599,120]
[342667986,1732030246843,-179566.0,0.0005993,120]
[342667987,1732030246852,-1000.0,0.00059945,120]
[342667988,1732030246867,-50000.0,0.0006,60]
[342667989,1732030246875,-349.0512405,0.0006,120]
[342667990,1732030246884,-400.0,0.0006,120]
[342667991,1732030246894,-12335.95627155,0.0006,120]
[342667992,1732030246904,-150.0,0.0006,120]
[342667993,1732030246919,-57271.78294336,0.0006,30]
[342667994,1732030246932,-748.1551989,0.0006,120]
[342667995,1732030246941,-3118.93429552,0.0006,120]
[342667996,1732030246951,-4000.0,0.0006,2]
[342667997,1732030246961,-500.0,0.0006,120]
[342667998,1732030246969,-1000.0,0.0006,120]
[342667999,1732030246979,-506.89551805,0.0006,120]
[342668000,1732030246989,-23722.29899157,0.0006,120]
[342668001,1732030247005,-29265.0,0.0006,120]
[342668002,1732030247015,-29265.0,0.0006,120]
[342668003,1732030247025,-200.0,0.0006,120]
[342668004,1732030247035,-10450.0,0.0006,120]
[342668005,1732030247045,-150.0,0.0006,30]
[342668006,1732030247055,-329.98,0.0006,120]
[342668007,1732030247064,-20839.7204108,0.0006,120]
[342668008,1732030247074,-153.78919276,0.0006,60]
[342668009,1732030247087,-1131.96708663,0.0006,30]
[342668010,1732030247097,-17552.90330324,0.0006,120]
[342668011,1732030247106,-150.0,0.0006,120]
[342668012,1732030247115,-536.60911949,0.0006,120]
[342668013,1732030247125,-239166.43792246,0.0006,120]
[342668014,1732030247134,-39853.72829557,0.0006,65]
[342668015,1732030247144,-151.0,0.0006,120]
[342668016,1732030247158,-793.08,0.00060159,120]
[342668017,1732030247167,-305.31,0.00060159,120]
[342668018,1732030247176,-394.67,0.00060159,120]
[342668019,1732030247186,-3068.02,0.00060274,120]
[342668020,1732030247196,-800.0,0.00060274,16]
[342668021,1732030247205,-800.0,0.00060274,16]
[342668022,1732030247214,-311.56,0.00060586,120]
[342668023,1732030247227,-41979.0,0.0006083,120]
[342668024,1732030247237,-400.0,0.00061,120]
[342668025,1732030247246,-10000.0,0.00061,60]
[342668026,1732030247255,-29265.0,0.00061,120]
[342668027,1732030247264,-29265.0,0.00061,120]
[342668028,1732030247273,-29265.0,0.00061,120]
[342668029,1732030247282,-200.0,0.00061,120]
[342668030,1732030247291,-1045.49,0.0006173,120]
[342668031,1732030247300,-51561.0,0.0006187,120]
[342668032,1732030247309,-30903.08059963,0.000619,120]
[342668033,1732030247318,-200.0,0.000619,22]
[342668034,1732030247328,-50000.0,0.00062,62]
[342668035,1732030247339,-100000.0,0.00062,120]
[342668036,1732030247348,-150.0,0.00062,120]
[342668037,1732030247358,-40315.37205016,0.00062,120]
[342668038,1732030247367,-1000.0,0.00062,120]
[342668039,1732030247376,-29265.0,0.00062,120]
[342668040,1732030247385,-29265.0,0.00062,120]
[342668041,1732030247394,-177880.0,0.00062,120]
[342668042,1732030247403,-47343.72228598,0.0006212,120]
[342668043,1732030247412,-150.0,0.0006261,120]
[342668044,1732030247421,-99934.63945267,0.000628,120]
[342668045,1732030247432,-45029.0,0.0006293,120]
[342668046,1732030247441,-300.0,0.00063,120]
[342668047,1732030247450,-27772.49177809,0.00063,10]
[342668048,1732030247459,-10000.0,0.00063,60]
[342668049,1732030247468,-300.0,0.00063,120]
[342668050,1732030247477,-29265.0,0.00063,120]
[342668051,1732030247486,-29265.0,0.00063,120]
[342668052,1732030247496,-29265.0,0.00063,120]
[342668053,1732030247505,-364.22,0.00063,60]
[342668054,1732030247514,-311.56,0.0006317,120]
[342668055,1732030247523,-1000.0,0.00063228,120]
[342668056,1732030247532,-157672.78645808,0.000638,120]
[342668057,1732030247541,-50000.0,0.00064,64]
[342668058,1732030247550,-300.0,0.00064,120]
[342668059,1732030247560,-1000.0,0.00064,120]
[342668060,1732030247569,-10000.0,0.00064,120]
[342668061,1732030247582,-2000.0,0.00064,7]
[342668062,1732030247591,-250.0,0.00064,2]
[342668063,1732030247601,-250.0,0.00064,5]
[342668064,1732030247610,-250.0,0.00064,10]
[342668065,1732030247620,-250.0,0.00064,20]
[342668066,1732030247629,-244.0,0.00064,40]
[342668067,1732030247639,-20000.0,0.00064,30]
[342668068,1732030247648,-3000.0,0.00064296,67]
[342668069,1732030247657,-196.67421272,0.0006478,120]
[342668070,1732030247666,-30000.0,0.000648,120]
[342668071,1732030247675,-1000.0,0.00064999,120]
[342668072,1732030247685,-300.0,0.00065,90]
[342668073,1732030247695,-300.0,0.00065,90]
[342668074,1732030247704,-200.0,0.00065,120]
[342668075,1732030247713,-1526.42734322,0.00065,120]
[342668076,1732030247724,-200.0,0.000653,120]
[342668077,1732030247733,-200.0,0.000654,120]
[342668078,1732030247743,-5096.03583382,0.000655,120]
[342668079,1732030247752,-800.0,0.00065753,120]
[342668080,1732030247763,-800.0,0.00065753,120]
[342668081,1732030247773,-311.56,0.00065754,120]
[342668082,1732030247782,-59327.00408202,0.000658,120]
[342668083,1732030247792,-250.8094241,0.00065955,4]
[342668084,1732030247802,-471.8692205,0.00065955,4]
[342668085,1732030247811,-50000.0,0.00066,66]
[342668086,1732030247821,-146584.55447265,0.00066,30]
[342668087,1732030247833,-300.0,0.00066,120]
[342668088,1732030247842,-1000.0,0.00066,120]
[342668089,1732030247851,-500.0,0.00066,120]
[342668090,1732030247861,-166.2,0.00066103,2]
[342668091,1732030247871,-150.0,0.0006642,120]
[342668092,1732030247880,-793.08,0.00066561,120]
[342668093,1732030247890,-305.31,0.00066561,120]
[342668094,1732030247899,-394.67,0.00066561,120]
[342668095,1732030247909,-1217684.24359476,0.000666,20]
[342668096,1732030247928,-24729.888386,0.000666,20]
[342668097,1732030247939,-24851.56038248,0.000666,20]
[342668098,1732030247974,738.29,9.999e-05,2]
[342668099,1732030248011,738.29,9.999e-05,2]
[342668100,1732030248055,738.29,9.999e-05,2]
[342668101,1732030248098,738.29,9.999e-05,2]
[342668102,1732030248155,738.29,9.999e-05,2]
[342668103,1732030248206,738.29,9.999e-05,2]
[342668104,1732030248252,-471.24,0.0002,2]
[342668105,1732030248263,-471.24,0.00025091,2]
[342668106,1732030248272,-150.0,0.00033,120]
[342668107,1732030248282,-150.0,0.000343,120]
[342668108,1732030248292,-150.0,0.000356,120]
[342668109,1732030248302,-471.24,0.00036739,2]
[342668110,1732030248313,-500.0,0.00039939,2]
[342668111,1732030248323,-500.0,0.00039939,2]
[342668112,1732030248337,-500.0,0.00039939,2]
[342668113,1732030248348,-500.0,0.00039939,2]
[342668114,1732030248358,-500.0,0.00039939,2]
[342668115,1732030248368,-500.0,0.00039939,2]
[342668116,1732030248379,-500.0,0.00039939,2]
[342668117,1732030248390,-151.0,0.00043808,120]
[342668118,1732030248400,-500.0,0.00045186,120]
[342668119,1732030248411,-151.0,0.00045534,120]
[342668120,1732030248421,-151.0,0.0004726,120]
[342668121,1732030248431,-471.24,0.00048387,120]
[342668122,1732030248441,-67099.91948595,0.000666,20]
[342668123,1732030248456,-2721.7705365,0.000666,20]
[342668124,1732030248492,738.29,9.999e-05,2]
[342668125,1732030248541,738.29,9.999e-05,2]
[342668126,1732030248607,738.29,9.999e-05,2]
[342668127,1732030248651,738.29,9.999e-05,2]
[342668128,1732030248714,738.29,9.999e-05,2]
[342668129,1732030248754,738.29,9.999e-05,2]
[342668130,1732030248799,738.29,9.999e-05,2]
[342668131,1732030248856,738.29,9.999e-05,2]
[342668132,1732030248904,738.29,9.999e-05,2]
[342668133,1732030248962,738.41,9.999e-05,2]
[342668134,1732030248995,-1260.0,0.0001693,2]
[342668135,1732030249005,-643.588,0.00023622,15]
[342668136,1732030249016,-500.0,0.000292,6]
[342668137,1732030249025,-500.0,0.000302,6]
[342668138,1732030249035,-500.0,0.000312,6]
[342668139,1732030249045,-150.0,0.000369,120]
[342668140,1732030249055,-284.18904,0.000382,120]
[342668141,1732030249065,-500.0,0.00039939,2]
[342668142,1732030249075,-500.0,0.00039939,2]
[342668143,1732030249087,-500.0,0.00039939,2]
[342668144,1732030249098,-150.0,0.00039939,7]
[342668145,1732030249108,-500.0,0.00039939,2]
[342668146,1732030249120,-500.0,0.00039939,2]
[342668147,1732030249131,-500.0,0.00039939,2]
[342668148,1732030249142,-500.0,0.00039939,2]
[342668149,1732030249155,-500.0,0.00039939,2]
[342668150,1732030249165,-500.0,0.00039939,2]
[342668151,1732030249176,-500.0,0.00039939,2]
[342668152,1732030249187,-500.0,0.00039939,2]
[342668153,1732030249198,-500.0,0.00039939,2]
[342668154,1732030249208,-500.0,0.00039939,2]
[342668155,1732030249218,-500.0,0.00039939,2]
[342668156,1732030249228,-500.0,0.00039939,2]
[342668157,1732030249239,-500.0,0.00039939,2]
[342668158,1732030249249,-314.86,0.0003999,3]
[342668159,1732030249259,-210.0,0.0004,2]
[342668160,1732030249269,-629.72,0.0004136,3]
[342668161,1732030249279,-210.0,0.00043,2]
[342668162,1732030249289,-500.0,0.00045734,120]
[342668163,1732030249298,-151.0,0.00048986,120]
[342668164,1732030249308,-150.0,0.00049024,7]
[342668165,1732030249318,-150.0,0.0004907,7]
[342668166,1732030249328,-150.0,0.00049075,7]
[342668167,1732030249343,-150.0,0.00049225,7]
[342668168,1732030249353,-150.0,0.00049279,7]
[342668169,1732030249363,-151.0,0.00050712,120]
[342668170,1732030249374,-151.0,0.00052438,120]
[342668171,1732030249384,-151.0,0.00054164,120]
[342668172,1732030249394,-151.0,0.0005589,120]
[342668173,1732030249404,-11819.22505943,0.000666,20]
[342668174,1732030249447,-850.904353,0.000282,6]
[342668175,1732030249457,-500.0,0.00039939,2]
[342668176,1732030249467,-150.0,0.00049037,7]
[342668177,1732030249476,-150.0,0.00049091,7]
[342668178,1732030249486,-150.0,0.00049125,7]
[342668179,1732030249495,-150.0,0.00049133,7]
[342668180,1732030249505,-150.0,0.00049289,7]
[342668181,1732030249515,-150.0,0.00049291,7]
[342668182,1732030249525,-143933.49344975,0.000666,20]
[342668183,1732030249573,-59.50732285,0.000666,20]
[342668184,1732030249597,-4587.04762788,0.0004,40]
[342668185,1732030249612,-11536.2641262,0.0004,40]
[342668186,1732030249650,-500.0,0.00039939,2]
[342668187,1732030249659,-17846.6,0.0004,40]
[342668188,1732030249671,-16030.08824592,0.0004,40]
[342668189,1732030249680,-150.0,0.00049022,7]
[342668190,1732030249690,-150.0,0.00049063,7]
[342668191,1732030249700,-150.0,0.00049093,7]